bitfinex-derivatives/quotes_BTCF0:USTF0_20251118
["timestamp","ask_amount","ask_price","bid_price","bid_amount"]
[1763489498363,0.04504,93758.0,93757.0,0.04569]
[1763489498966,0.303,93758.0,93757.0,0.04569]
[1763489499266,0.00016,93758.0,93757.0,0.04569]
[1763489502672,0.04488,93778.0,93777.0,0.04569]
[1763489502871,0.3028,93778.0,93777.0,0.04569]
[1763489504067,0.1515936,93777.0,93776.0,0.3608]
[1763489504259,0.1647304,93771.0,93770.0,0.02465803]
[1763489504465,0.04488,93769.0,93768.0,0.00016]
[1763489505565,0.04588,93769.0,93768.0,0.00016]
[1763489506771,0.3048,93769.0,93768.0,0.00016]
[1763489507266,0.3048,93769.0,93768.0,0.04585]
[1763489507466,0.002,93769.0,93768.0,0.04585]
[1763489508672,0.02416,93769.0,93768.0,0.04585]
[1763489509261,0.04688,93769.0,93768.0,0.04585]
[1763489509462,0.04688,93769.0,93768.0,0.00016]
[1763489510183,0.04488,93757.0,93756.0,0.38326]
[1763489510367,0.28008,93764.0,93763.0,0.04569]
[1763489510568,0.3868083,93764.0,93763.0,0.04569]
[1763489510768,0.4095283,93764.0,93763.0,0.04569]
[1763489510968,0.4095283,93764.0,93738.0,0.3608]
[1763489510969,0.04488,93739.0,93738.0,0.03830335]
[1763489511175,0.04488,93737.0,93736.0,0.04569]
[1763489512367,0.1067484,93738.0,93731.0,0.01246]
[1763489512670,0.1067528,93735.0,93734.0,0.04569]
[1763489512876,0.258,93743.0,93742.0,0.04569]
[1763489513182,0.4096227,93743.0,93742.0,0.04569]
[1763489513472,0.4096227,93743.0,93740.0,0.00073266]
[1763489513473,0.04488,93741.0,93740.0,0.00073266]
[1763489513976,0.04488,93741.0,93740.0,0.02319266]
[1763489514179,0.02216,93741.0,93740.0,0.04642266]
[1763489514475,0.258,93743.0,93742.0,0.04569]
[1763489515279,0.28016,93743.0,93742.0,0.04569]
[1763489516278,0.258,93743.0,93742.0,0.04569]
[1763489516976,0.28016,93743.0,93742.0,0.05837]
[1763489517282,0.28016,93743.0,93742.0,0.04569]
[1763489517576,0.30288,93743.0,93742.0,0.04569]
[1763489517777,0.00016,93748.0,93747.0,0.04472]
[1763489519182,0.04461,93748.0,93747.0,0.02244]
[1763489519373,0.04445,93744.0,93743.0,0.08302335]
[1763489519680,0.1511913,93744.0,93743.0,0.04472]
[1763489520778,0.1068968,93748.0,93747.0,0.04472]
[1763489520981,0.1286268,93748.0,93747.0,0.04472]
[1763489521176,0.1286268,93748.0,93741.0,0.39910335]
[1763489521177,0.1511936,93742.0,93741.0,0.40552]
[1763489522185,0.1284736,93742.0,93741.0,0.40552]
[1763489523685,0.1284736,93742.0,93741.0,0.38324]
[1763489523686,0.1511936,93742.0,93741.0,0.38324]
[1763489524387,0.1511936,93742.0,93741.0,0.40552]
[1763489525085,0.1511936,93742.0,93741.0,0.3608]
[1763489525980,0.05635,93730.0,93727.0,0.3608]
[1763489526180,0.05635,93730.0,93719.0,0.3608]
[1763489526181,0.41934803,93730.0,93719.0,0.3608]
[1763489527379,0.04445,93727.0,93719.0,0.3608]
[1763489527580,0.1645187,93720.0,93719.0,0.3608]
[1763489527774,0.04445,93705.0,93701.0,0.39910335]
[1763489527980,0.1512392,93702.0,93701.0,0.3608]
[1763489528578,1.6512392,93702.0,93701.0,0.3608]
[1763489529177,1.52173,93702.0,93701.0,0.40652]
[1763489529378,1.5,93702.0,93701.0,0.40652]
[1763489529783,1.5,93702.0,93701.0,0.3608]
[1763489529978,1.501,93702.0,93701.0,0.3608]
[1763489530178,1.502,93702.0,93701.0,0.38324]
[1763489530380,1.501,93702.0,93701.0,0.3608]
[1763489530579,1.502,93702.0,93701.0,0.3608]
[1763489531086,0.04445,93693.0,93692.0,0.00029554]
[1763489531284,0.4093295,93693.0,93692.0,0.02273554]
[1763489531680,0.4093295,93693.0,93692.0,0.04501554]
[1763489532689,0.4093295,93693.0,93692.0,0.00029554]
[1763489533282,0.30353,93693.0,93692.0,0.04501554]
[1763489533979,0.30353,93693.0,93692.0,0.02273554]
[1763489534383,0.30353,93693.0,93692.0,0.00029554]
[1763489536288,0.30353,93693.0,93692.0,0.02273554]
[1763489536591,0.30353,93693.0,93692.0,0.04501554]
[1763489537584,0.25908,93693.0,93692.0,0.40581554]
[1763489537993,0.28081,93693.0,93692.0,0.40581554]
[1763489538181,0.25908,93693.0,93692.0,0.40581554]
[1763489538788,0.28081,93693.0,93692.0,0.40581554]
[1763489538992,0.30353,93693.0,93692.0,0.40581554]
[1763489539188,0.25908,93693.0,93692.0,0.40581554]
[1763489539392,0.1067604,93728.0,93692.0,0.40581554]
[1763489539393,0.1067755,93714.0,93710.0,0.05153]
[1763489539592,0.1067755,93714.0,93710.0,0.05226266]
[1763489539798,0.25804,93718.0,93710.0,0.05226266]
[1763489539799,1.50016008,93711.0,93710.0,0.05226266]
[1763489540696,1.50216008,93711.0,93710.0,0.05226266]
[1763489540895,1.50216008,93711.0,93710.0,0.15904256]
[1763489541083,1.50216008,93711.0,93710.0,0.05226266]
[1763489541285,1.50216008,93711.0,93710.0,0.15904256]
[1763489542299,0.00216008,93711.0,93710.0,0.15904256]
[1763489542484,0.00216008,93711.0,93710.0,0.05226266]
[1763489543892,0.1067667,93722.0,93721.0,0.1513671]
[1763489544097,0.1067667,93722.0,93721.0,0.5121671]
[1763489544797,1.6290967,93722.0,93721.0,0.4054]
[1763489545187,1.6067667,93722.0,93721.0,0.4054]
[1763489545893,1.6107667,93722.0,93721.0,0.4054]
[1763489548102,1.6107667,93722.0,93712.0,0.00016008]
[1763489548103,0.1524062,93713.0,93712.0,0.00016008]
[1763489549294,0.4104462,93713.0,93712.0,0.00016008]
[1763489549487,0.7712462,93713.0,93712.0,0.00016008]
[1763489549688,0.79437842,93713.0,93712.0,0.00016008]
[1763489549890,0.79437842,93713.0,93697.0,0.3608]
[1763489549891,0.1524233,93698.0,93697.0,0.40433]
[1763489550386,0.1524233,93698.0,93697.0,0.38327]
[1763489550991,0.1524233,93698.0,93697.0,0.40433]
[1763489551294,0.04563,93698.0,93697.0,0.40433]
[1763489551600,0.04563,93698.0,93697.0,0.3608]
[1763489552394,0.04563,93698.0,93697.0,0.38327]
[1763489552693,0.04563,93698.0,93697.0,0.3608]
[1763489553792,0.04563,93698.0,93697.0,0.38327]
[1763489553993,0.04563,93698.0,93697.0,0.3608]
[1763489554294,0.04563,93698.0,93697.0,0.40433]
[1763489554500,0.1524233,93698.0,93697.0,0.40433]
[1763489554700,0.17557914,93698.0,93697.0,0.40433]
[1763489556093,0.06878584,93698.0,93697.0,0.40433]
[1763489556291,0.02315584,93698.0,93697.0,0.40433]
[1763489556894,0.00016008,93707.0,93706.0,0.1503141]
[1763489557093,0.00016008,93707.0,93706.0,0.5111141]
[1763489557295,0.02357622,93707.0,93706.0,0.40433]
[1763489557693,0.04675622,93707.0,93706.0,0.40433]
[1763489557897,0.06920622,93707.0,93706.0,0.3608]
[1763489558298,0.06920622,93707.0,93706.0,0.3618]
[1763489558499,0.32724622,93707.0,93706.0,0.3618]
[1763489558904,0.32724622,93707.0,93706.0,0.3608]
[1763489559505,0.1067933,93698.0,93697.0,0.38327]
[1763489559706,0.17583944,93698.0,93697.0,0.40433]
[1763489560796,0.17583944,93698.0,93697.0,0.3608]
[1763489561005,0.17583944,93698.0,93697.0,0.38327]
[1763489561205,0.17583944,93698.0,93697.0,0.40433]
[1763489563598,0.17583944,93698.0,93697.0,0.3608]
[1763489564803,0.17583944,93698.0,93697.0,0.40433]
[1763489566103,0.17583944,93698.0,93697.0,0.3608]
[1763489567298,0.17583944,93698.0,93688.0,0.00016008]
[1763489567299,0.152429,93693.0,93688.0,0.00016008]
[1763489567606,0.17584514,93693.0,93688.0,0.00016008]
[1763489569112,0.17584514,93693.0,93692.0,0.02260546]
[1763489569506,0.17584514,93693.0,93692.0,0.00013546]
[1763489570599,0.17584514,93693.0,93692.0,0.02260546]
[1763489571303,0.13021514,93693.0,93692.0,0.04366546]
[1763489571505,0.17584514,93693.0,93692.0,0.02260546]
[1763489572404,0.17584514,93693.0,93692.0,0.00013546]
[1763489573010,0.17584514,93693.0,93692.0,0.04366546]
[1763489575015,0.17584514,93693.0,93692.0,0.02260546]
[1763489575217,0.17584514,93693.0,93692.0,0.00013546]
[1763489579015,0.17584514,93693.0,93692.0,0.04535546]
[1763489579603,0.06904614,93693.0,93692.0,0.04535546]
[1763489579810,0.28145614,93693.0,93692.0,0.15215556]
[1763489580114,0.02341614,93693.0,93692.0,0.04535546]
[1763489580416,0.17377889,93699.0,93698.0,0.04513]
[1763489580710,0.17377889,93699.0,93698.0,0.40593]
[1763489581614,0.17377876,93699.0,93698.0,0.40593]
[1763489584012,0.02347666,93699.0,93698.0,0.40593]
[1763489585318,0.04530666,93699.0,93698.0,0.40693]
[1763489585520,0.06698666,93699.0,93698.0,0.40693]
[1763489585818,0.06698666,93699.0,93698.0,0.40593]
[1763489586010,0.04530666,93699.0,93698.0,0.40693]
[1763489586214,0.06698666,93699.0,93698.0,0.40693]
[1763489586421,0.02347666,93699.0,93698.0,0.40693]
[1763489586619,0.04530666,93699.0,93698.0,0.40693]
[1763489587213,0.06698666,93699.0,93698.0,0.38418]
[1763489587716,0.06698666,93699.0,93698.0,0.40693]
[1763489587917,0.06698666,93699.0,93698.0,0.40593]
[1763489588217,0.06698666,93699.0,93698.0,0.40693]
[1763489591517,0.06698666,93699.0,93698.0,0.3618]
[1763489592718,0.06698666,93699.0,93698.0,0.40693]
[1763489593626,0.06698666,93699.0,93698.0,0.38418]
[1763489593927,0.06698666,93699.0,93698.0,0.40693]
[1763489594116,0.02347666,93699.0,93698.0,0.40693]
[1763489594314,0.1067731,93716.0,93706.0,0.1362841]
[1763489594514,0.03488,93720.0,93719.0,0.02948]
[1763489594715,0.03707803,93720.0,93719.0,0.39028]
[1763489595025,0.0575619,93748.0,93746.0,0.1362185]
[1763489595219,0.01333,93760.0,93759.0,0.02948]
[1763489595220,0.03516,93760.0,93759.0,0.02948]
[1763489595519,0.03516,93760.0,93738.0,0.25804]
[1763489595520,0.04351,93756.0,93755.0,0.3608]
[1763489595914,0.04351,93756.0,93755.0,0.37554]
[1763489596622,0.04351,93756.0,93755.0,0.39028]
[1763489597623,0.04351,93756.0,93755.0,0.3608]
[1763489598011,0.04351,93756.0,93755.0,0.37554]
[1763489598223,0.04351,93756.0,93755.0,0.39028]
[1763489598523,0.04351,93756.0,93755.0,0.3608]
[1763489598721,0.04451,93756.0,93755.0,0.3608]
[1763489599823,0.04451,93756.0,93750.0,0.00089264]
[1763489599824,0.1502428,93751.0,93750.0,0.00089264]
[1763489600026,0.1502428,93751.0,93750.0,0.00015998]
[1763489603229,0.1522999,93736.0,93735.0,0.3608]
[1763489603523,0.1523124,93725.0,93724.0,0.3608]
[1763489604126,0.1523124,93725.0,93724.0,0.3258]
[1763489605533,0.1523124,93725.0,93724.0,0.348]
[1763489605822,0.4102324,93725.0,93724.0,0.348]
[1763489606126,0.00015998,93734.0,93733.0,0.04389]
[1763489606127,0.15246218,93734.0,93733.0,0.04389]
[1763489606326,0.43369902,93734.0,93733.0,0.04389]
[1763489607120,0.43369902,93734.0,93733.0,0.0222]
[1763489607531,0.43369902,93734.0,93724.0,0.34745]
[1763489607532,0.04499,93725.0,93724.0,0.34745]
[1763489607831,0.1517524,93725.0,93724.0,0.36871]
[1763489608221,0.1067585,93729.0,93728.0,0.04291]
[1763489608418,0.17502779,93729.0,93728.0,0.04291]
[1763489609327,0.17502779,93729.0,93728.0,0.02165]
[1763489609632,0.1517524,93725.0,93724.0,0.34745]
[1763489609831,0.17503169,93725.0,93724.0,0.36871]
[1763489612326,0.17503169,93725.0,93724.0,0.3258]
[1763489613627,0.17503169,93725.0,93724.0,0.36871]
[1763489613823,0.13004169,93725.0,93724.0,0.36871]
[1763489616131,0.1067624,93725.0,93724.0,0.36871]
[1763489616436,0.1293724,93725.0,93724.0,0.36871]
[1763489616635,0.1067598,93728.0,93724.0,0.3258]
[1763489616834,0.1067598,93728.0,93727.0,0.04291]
[1763489617030,0.00219803,93730.0,93729.0,0.04291]
[1763489618329,0.02480803,93730.0,93729.0,0.04291]
[1763489618733,0.04718803,93730.0,93729.0,0.04291]
[1763489620228,0.1067624,93725.0,93724.0,0.3258]
[1763489620433,0.1517524,93725.0,93724.0,0.34745]
[1763489621040,0.1517524,93725.0,93724.0,0.36871]
[1763489623537,0.4097124,93725.0,93724.0,0.3258]
[1763489624244,0.1517627,93716.0,93715.0,0.00015998]
[1763489624828,0.1517627,93716.0,93715.0,0.04306998]
[1763489625732,0.02261,93716.0,93715.0,0.40386998]
[1763489626036,0.151761,93718.0,93717.0,0.04291]
[1763489628442,0.151761,93718.0,93717.0,0.02165]
[1763489628639,0.04499,93716.0,93715.0,0.38260998]
[1763489628839,0.04499,93716.0,93715.0,0.40386998]
[1763489633732,0.04499,93716.0,93715.0,0.36095998]
[1763489634449,0.04499,93716.0,93715.0,0.38260998]
[1763489634745,0.04499,93716.0,93715.0,0.40386998]
[1763489635445,0.04499,93716.0,93715.0,0.38260998]
[1763489636740,0.04499,93716.0,93715.0,0.00015998]
[1763489638738,0.04499,93716.0,93715.0,0.04469998]
[1763489638935,0.1517627,93716.0,93715.0,0.04469998]
[1763489639652,0.1517627,93716.0,93715.0,0.02317998]
[1763489639954,0.1517627,93716.0,93715.0,0.00015998]
[1763489641049,0.1517627,93716.0,93715.0,0.04469998]
[1763489642144,0.1647627,93716.0,93715.0,0.00015998]
[1763489643052,0.1516918,93708.0,93707.0,0.3608]
[1763489643246,0.4096518,93708.0,93707.0,0.3608]
[1763489644745,0.1067898,93701.0,93700.0,0.03826263]
[1763489644954,0.1506998,93701.0,93700.0,0.04454]
[1763489645151,0.1496998,93701.0,93698.0,0.00010788]
[1763489645457,0.1517021,93699.0,93698.0,0.00010788]
[1763489645751,0.4096621,93699.0,93698.0,0.00010788]
[1763489645945,0.4086621,93699.0,93698.0,0.00010788]
[1763489646747,0.4096621,93699.0,93698.0,0.00010788]
[1763489646953,0.02191,93693.0,93692.0,0.00013546]
[1763489647253,0.1507089,93693.0,93692.0,0.00013546]
[1763489647841,0.1507089,93693.0,93686.0,0.00026685]
[1763489647842,0.04491,93687.0,93686.0,0.00026685]
[1763489648041,0.30287,93687.0,93686.0,0.00026685]
[1763489648543,0.00219803,93690.0,93689.0,0.04454]
[1763489648844,0.30506803,93690.0,93689.0,0.04454]
[1763489649036,0.30517956,93690.0,93689.0,0.04454]
[1763489650343,0.1068035,93689.0,93686.0,0.00026685]
[1763489650549,0.04491,93687.0,93686.0,0.00026685]
[1763489651747,0.04491,93687.0,93686.0,0.04480685]
[1763489652048,0.04491,93687.0,93686.0,0.02328685]
[1763489652257,0.04491,93687.0,93686.0,0.04480685]
[1763489652751,0.30291,93687.0,93686.0,0.04480685]
[1763489653348,0.00230956,93690.0,93689.0,0.04454]
[1763489653551,0.00016007,93710.0,93709.0,0.04454]
[1763489653743,0.0023581,93710.0,93709.0,0.40534]
[1763489654057,0.0242681,93710.0,93709.0,0.40534]
[1763489654651,0.0023581,93710.0,93709.0,0.40534]
[1763489655353,0.00016007,93710.0,93709.0,0.40534]
[1763489655556,0.00116007,93710.0,93709.0,0.40534]
[1763489655741,0.1067659,93722.0,93709.0,0.40534]
[1763489655945,0.1067693,93719.0,93718.0,0.04454]
[1763489656142,0.1067693,93719.0,93718.0,0.40534]
[1763489657647,0.10896613,93720.0,93719.0,0.04454]
[1763489657849,0.15387613,93720.0,93719.0,0.04454]
[1763489664862,0.16720613,93720.0,93719.0,0.04454]
[1763489665954,0.16720613,93720.0,93719.0,0.02302]
[1763489666161,0.04284,93719.0,93718.0,0.3608]
[1763489666559,0.04284,93719.0,93718.0,0.38405]
[1763489667257,0.04284,93719.0,93718.0,0.3608]
[1763489667455,0.04414,93711.0,93710.0,0.40623]
[1763489667655,0.04414,93711.0,93710.0,0.40696266]
[1763489668463,0.1642381,93720.0,93719.0,0.04543]
[1763489668662,0.16643613,93720.0,93719.0,0.02264]
[1763489670565,0.1509184,93711.0,93710.0,0.40623]
[1763489670863,0.1509184,93711.0,93710.0,0.40696266]
[1763489671560,0.1509184,93711.0,93710.0,0.38417266]
[1763489671755,0.1509184,93711.0,93710.0,0.40696266]
[1763489672956,0.04414,93711.0,93710.0,0.40696266]
[1763489673368,0.1509184,93711.0,93710.0,0.40696266]
[1763489675266,0.04414,93711.0,93710.0,0.40696266]
[1763489675657,0.04414,93711.0,93710.0,0.38417266]
[1763489675858,0.04414,93711.0,93710.0,0.36153266]
[1763489676061,0.04414,93711.0,93710.0,0.40696266]
[1763489677671,0.04414,93711.0,93710.0,0.44538659]
[1763489678268,0.04414,93711.0,93710.0,0.40696266]
[1763489678571,0.15311753,93710.0,93709.0,0.00016007]
[1763489680268,0.15311753,93710.0,93678.0,0.3608]
[1763489680269,0.1637666,93695.0,93693.0,0.03842393]
[1763489680482,0.1509423,93690.0,93689.0,0.03842393]
[1763489680664,0.1509457,93687.0,93686.0,0.00026685]
[1763489681575,0.1489457,93687.0,93686.0,0.00026685]
[1763489683477,0.1489457,93687.0,93686.0,0.04569685]
[1763489683663,0.1489457,93687.0,93686.0,0.02290685]
[1763489684168,0.1489457,93687.0,93686.0,0.04569685]
[1763489684368,0.02354803,93690.0,93689.0,0.04543]
[1763489684572,0.41110033,93690.0,93689.0,0.04543]
[1763489685876,0.30529803,93690.0,93689.0,0.04543]
[1763489686073,0.41210033,93690.0,93689.0,0.04543]
[1763489687385,0.41210033,93690.0,93689.0,0.02264]
[1763489687575,0.04733803,93690.0,93689.0,0.04543]
[1763489687876,0.001,93690.0,93689.0,0.40623]
[1763489689586,0.00319803,93690.0,93689.0,0.40623]
[1763489690187,0.02454803,93690.0,93689.0,0.40623]
[1763489690688,0.04733803,93690.0,93689.0,0.40623]
[1763489697890,0.00319803,93690.0,93689.0,0.40623]
[1763489698188,0.02435803,93690.0,93689.0,0.40623]
[1763489698389,0.00319803,93690.0,93689.0,0.40623]
[1763489698692,0.02435803,93690.0,93689.0,0.40623]
[1763489699198,0.00319803,93690.0,93689.0,0.40623]
[1763489699789,0.04723803,93690.0,93689.0,0.40509]
[1763489700190,0.04723803,93690.0,93689.0,0.5118935]
[1763489700400,0.001,93690.0,93689.0,0.5118935]
[1763489700697,0.04723803,93690.0,93689.0,0.40509]
[1763489701293,0.001,93690.0,93689.0,0.40509]
[1763489701690,0.00049611,93690.0,93689.0,0.40509]
[1763489703497,0.10695557,93696.0,93695.0,0.04457]
[1763489704504,0.15099557,93696.0,93695.0,0.04457]
[1763489705100,0.15199557,93696.0,93695.0,0.04457]
[1763489705403,0.13011557,93696.0,93695.0,0.04457]
[1763489705699,0.15299557,93696.0,93695.0,0.04457]
[1763489706595,0.1508389,93693.0,93692.0,0.06128521]
[1763489706793,0.04404,93692.0,93690.0,0.03909787]
[1763489706994,0.04404,93687.0,93686.0,0.04483685]
[1763489707593,0.04404,93687.0,93686.0,0.08320206]
[1763489708308,0.04404,93687.0,93686.0,0.04483685]
[1763489709800,0.04404,93687.0,93686.0,0.02318685]
[1763489710103,0.04404,93687.0,93686.0,0.00026685]
[1763489711905,0.04404,93687.0,93686.0,0.04483685]
[1763489712106,0.302,93687.0,93686.0,0.04483685]
[1763489712309,0.04404,93687.0,93686.0,0.04483685]
[1763489712604,0.302,93687.0,93686.0,0.04483685]
[1763489713505,0.302,93687.0,93686.0,0.00026685]
[1763489714606,0.1508583,93676.0,93675.0,0.03839909]
[1763489715500,0.1508606,93674.0,93673.0,0.39919909]
[1763489715701,0.1508606,93674.0,93673.0,0.3608]
[1763489716108,0.1508606,93674.0,93673.0,0.40537]
[1763489717715,0.25796,93677.0,93676.0,0.04457]
[1763489717901,0.27912,93677.0,93676.0,0.04457]
[1763489718298,0.05919803,93680.0,93679.0,0.04457]
[1763489718501,0.1508594,93675.0,93674.0,0.44376909]
[1763489718701,0.1508594,93675.0,93674.0,0.40537]
[1763489718902,0.1508594,93675.0,93674.0,0.38372]
[1763489719097,0.1508594,93675.0,93674.0,0.40537]
[1763489720608,0.04404,93675.0,93674.0,0.40537]
[1763489723799,0.00219803,93670.0,93663.0,0.05745476]
[1763489723999,0.1416914,93647.0,93646.0,0.00026696]
[1763489724200,0.61876,93647.0,93646.0,0.04337696]
[1763489724601,0.1068514,93647.0,93646.0,0.04337696]
[1763489724797,0.4676514,93647.0,93646.0,0.04337696]
[1763489725003,0.49149629,93647.0,93646.0,0.04337696]
[1763489725313,0.49049629,93647.0,93646.0,0.04337696]
[1763489725606,0.52533629,93647.0,93646.0,0.04337696]
[1763489726002,0.52533629,93647.0,93646.0,0.02134696]
[1763489726913,0.52633629,93647.0,93646.0,0.02134696]
[1763489727309,0.49149629,93647.0,93646.0,0.04337696]
[1763489727499,0.52733629,93647.0,93646.0,0.04337696]
[1763489728009,0.52733629,93647.0,93638.0,0.00010382]
[1763489728010,0.1417005,93639.0,93638.0,0.00010382]
[1763489728216,0.1242965,93625.0,93624.0,0.04455]
[1763489728414,0.63622,93625.0,93624.0,0.04455]
[1763489728615,2.1188,93625.0,93624.0,0.04455]
[1763489729303,1.86088838,93625.0,93624.0,0.04455]
[1763489729513,2.11888838,93625.0,93624.0,0.04455]
[1763489729898,1.86088838,93625.0,93624.0,0.04455]
[1763489730104,0.03484,93621.0,93620.0,0.02208]
[1763489730311,0.29288,93621.0,93620.0,0.04455]
[1763489731308,0.29288,93621.0,93620.0,0.02208]
[1763489731509,0.29288,93621.0,93620.0,0.04455]
[1763489732205,0.25804,93621.0,93620.0,0.04528266]
[1763489732805,1.60696488,93625.0,93624.0,0.04455]
[1763489733007,1.86500488,93625.0,93620.0,0.00073266]
[1763489733204,1.86500488,93625.0,93620.0,0.02281266]
[1763489733205,0.141721,93621.0,93620.0,0.02281266]
[1763489733404,0.141721,93621.0,93620.0,0.04528266]
[1763489734006,0.106881,93621.0,93620.0,0.04528266]
[1763489734399,0.141721,93621.0,93620.0,0.04528266]
[1763489734813,1.75812838,93625.0,93624.0,0.04455]
[1763489735501,1.50008838,93625.0,93624.0,0.04455]
[1763489735705,8.838e-05,93625.0,93624.0,0.40535]
[1763489736012,0.3649519,93629.0,93628.0,0.04455]
[1763489736200,0.1068719,93629.0,93628.0,0.04455]
[1763489737005,0.10691457,93629.0,93628.0,0.04455]
[1763489739216,4.267e-05,93629.0,93628.0,0.04455]
[1763489739411,0.10691457,93629.0,93628.0,0.04455]
[1763489739609,4.267e-05,93629.0,93628.0,0.512223]
[1763489740203,0.10691457,93629.0,93628.0,0.512223]
[1763489740502,0.10691457,93629.0,93628.0,0.40535]
[1763489740912,0.10691457,93629.0,93628.0,0.04455]
[1763489741711,4.267e-05,93629.0,93628.0,0.04455]
[1763489742915,0.03504267,93629.0,93628.0,0.04455]
[1763489743215,4.267e-05,93629.0,93628.0,0.04455]
[1763489743518,0.03504267,93629.0,93628.0,0.04455]
[1763489745120,4.267e-05,93629.0,93628.0,0.04455]
[1763489746021,0.07187025,93634.0,93633.0,0.04455]
[1763489746211,0.1068634,93637.0,93636.0,0.120002]
[1763489746521,0.10905823,93640.0,93639.0,0.1514105]
[1763489746925,0.10905823,93640.0,93636.0,0.01314]
[1763489746926,1.6068487,93650.0,93649.0,0.04455]
[1763489747116,1.86712673,93650.0,93649.0,0.04455]
[1763489748120,1.86812673,93650.0,93649.0,0.04455]
[1763489750115,1.86712673,93650.0,93649.0,0.04455]
[1763489752528,0.1513825,93646.0,93645.0,0.04455]
[1763489753027,0.1513825,93646.0,93645.0,0.05769]
[1763489754817,0.1513825,93646.0,93645.0,0.04455]
[1763489755217,0.04453,93646.0,93645.0,0.04455]
[1763489755423,0.3608,93661.0,93658.0,0.1513888]
[1763489755720,0.00847199,93659.0,93658.0,0.1513888]
[1763489756025,0.3608,93670.0,93669.0,0.1513763]
[1763489756235,0.66560803,93670.0,93669.0,0.04455]
[1763489756424,0.00219803,93670.0,93669.0,0.04455]
[1763489756615,0.38237,93680.0,93679.0,0.04455]
[1763489756816,0.40752803,93680.0,93679.0,0.04455]
[1763489758021,0.1521517,93673.0,93672.0,0.04458]
[1763489758727,0.1521517,93673.0,93672.0,0.02305]
[1763489759316,0.4101917,93673.0,93672.0,0.02305]
[1763489759515,0.4101917,93673.0,93670.0,0.00089284]
[1763489759516,0.04533,93671.0,93670.0,0.00016018]
[1763489760332,0.1521654,93661.0,93660.0,0.04531266]
[1763489760521,0.4102054,93661.0,93660.0,0.04531266]
[1763489760721,0.4102054,93661.0,93660.0,0.00073266]
[1763489760922,0.4102054,93661.0,93660.0,0.04531266]
[1763489761433,0.00016018,93670.0,93669.0,0.04458]
[1763489761625,0.13195331,93670.0,93669.0,0.04458]
[1763489762137,0.15451331,93670.0,93669.0,0.04458]
[1763489762331,0.00235821,93670.0,93669.0,0.1514063]
[1763489762525,0.04768821,93670.0,93669.0,0.04458]
[1763489763127,0.1521654,93661.0,93660.0,0.04458]
[1763489763332,0.04533,93661.0,93660.0,0.04531266]
[1763489764230,0.25804,93665.0,93660.0,0.04531266]
[1763489764231,0.25804,93665.0,93664.0,0.04458]
[1763489764531,0.30337,93665.0,93664.0,0.04458]
[1763489765133,0.25804,93665.0,93664.0,0.04458]
[1763489765324,0.49055638,93670.0,93669.0,0.04458]
[1763489765521,0.75079441,93670.0,93669.0,0.04458]
[1763489765828,0.00235821,93670.0,93669.0,0.40538]
[1763489766035,0.00016018,93670.0,93669.0,0.40538]
[1763489766422,0.1068124,93682.0,93681.0,0.1641826]
[1763489766626,0.1068124,93682.0,93681.0,0.05737]
[1763489766932,0.1521424,93682.0,93681.0,0.04458]
[1763489767119,0.1521424,93682.0,93681.0,0.05737]
[1763489767625,0.1521424,93682.0,93672.0,0.01279]
[1763489767626,0.1521517,93673.0,93672.0,0.04474018]
[1763489767828,0.1521517,93673.0,93672.0,0.00016018]
[1763489768220,0.4101517,93673.0,93672.0,0.00016018]
[1763489768828,0.4101517,93673.0,93672.0,0.04474018]
[1763489769832,0.4101517,93673.0,93672.0,0.02321018]
[1763489769833,0.1521517,93673.0,93672.0,0.02321018]
[1763489770036,0.04533,93673.0,93672.0,0.04474018]
[1763489770528,0.04533,93673.0,93672.0,0.02321018]
[1763489770730,0.04533,93673.0,93672.0,0.00016018]
[1763489771934,0.06947661,93673.0,93672.0,0.00016018]
[1763489772628,0.06947661,93673.0,93672.0,0.04474018]
[1763489772828,0.06947661,93673.0,93672.0,0.00016018]
[1763489773336,0.1521517,93673.0,93672.0,0.04474018]
[1763489773638,0.4101517,93673.0,93672.0,0.04474018]
[1763489774526,0.30333,93673.0,93672.0,0.04474018]
[1763489774727,0.3608,93676.0,93675.0,0.04458]
[1763489774934,0.66413,93676.0,93675.0,0.04458]
[1763489775737,0.04533,93673.0,93672.0,0.02321018]
[1763489776829,0.04533,93673.0,93672.0,0.00016018]
[1763489777826,0.02277,93673.0,93672.0,0.05753018]
[1763489778134,0.04533,93673.0,93672.0,0.00016018]
[1763489778343,0.06949674,93673.0,93672.0,0.00016018]
[1763489779238,0.06949674,93673.0,93654.0,0.05737]
[1763489779239,0.1068422,93655.0,93654.0,0.05737]
[1763489779530,0.04533,93659.0,93658.0,0.04458]
[1763489779733,0.00219803,93660.0,93659.0,0.1514177]
[1763489780235,0.3608,93675.0,93668.0,0.04458]
[1763489780236,0.12975648,93669.0,93668.0,0.04458]
[1763489780537,0.38775648,93669.0,93668.0,0.04458]
[1763489780732,0.41031648,93669.0,93668.0,0.04458]
[1763489780939,0.1506731,93663.0,93662.0,0.40348]
[1763489781434,0.1068304,93666.0,93665.0,0.04268]
[1763489782823,0.12865658,93669.0,93668.0,0.04268]
[1763489783229,0.05648,93663.0,93662.0,0.3608]
[1763489783429,0.04384,93661.0,93660.0,0.00073266]
[1763489783634,0.1506868,93651.0,93650.0,0.00016018]
[1763489783836,0.4087268,93651.0,93650.0,0.00016018]
[1763489785538,0.1506868,93651.0,93650.0,0.04357284]
[1763489785738,0.4087268,93651.0,93650.0,0.04357284]
[1763489785941,0.1068441,93654.0,93653.0,0.04268]
[1763489786128,0.43293582,93654.0,93653.0,0.04268]
[1763489786334,0.43293582,93654.0,93653.0,0.02146]
[1763489786732,0.02421172,93654.0,93653.0,0.04268]
[1763489786932,0.258,93661.0,93660.0,0.1495165]
[1763489787133,0.258,93661.0,93660.0,0.04341266]
[1763489788032,0.30173,93661.0,93660.0,0.04341266]
[1763489788738,0.15056638,93669.0,93668.0,0.04395]
[1763489788941,0.17477243,93669.0,93668.0,0.04395]
[1763489789126,0.17477243,93669.0,93668.0,0.02134]
[1763489789734,0.1283565,93660.0,93659.0,0.40475]
[1763489789934,0.15261453,93660.0,93659.0,0.40475]
[1763489790737,0.16626453,93660.0,93659.0,0.3608]
[1763489791238,0.13055453,93660.0,93659.0,0.40475]
[1763489791434,0.15261453,93660.0,93659.0,0.04395]